fUSD/lending_fUSD_20240408
["ID","MTS","AMOUNT","RATE_DAILY","PERIOD"]
[321909301,1712613032686,-448.75,0.00020261,2]
[321909302,1712613032695,-448.75,0.00020261,2]
[321909303,1712613032707,-3627.925,0.00020261,2]
[321909304,1712613032716,-7087.80543768,0.00020267,2]
[321909305,1712613032727,-682.253116,0.00020269,2]
[321909306,1712613032736,-1192.86186697,0.00020269,2]
[321909307,1712613032746,-216.64242715,0.00020269,2]
[321909308,1712613032755,-198.56126904,0.00020269,2]
[321909309,1712613032764,-3688.50947431,0.00020269,2]
[321909310,1712613032773,-520.35385716,0.00020269,2]
[321909311,1712613032782,-492.77767206,0.00020269,2]
[321909312,1712613032792,-322.63624321,0.00020269,2]
[321909313,1712613032801,-157.21892996,0.00020269,2]
[321909314,1712613032811,-2823.23348119,0.00020269,2]
[321909315,1712613032821,-774.34485208,0.00020269,2]
[321909316,1712613032831,-378.72245511,0.00020269,2]
[321909317,1712613032840,-1237.00122591,0.00020269,2]
[321909318,1712613032850,-1179.21636078,0.00020269,2]
[321909319,1712613032865,-155.49479633,0.00020269,2]
[321909320,1712613032874,-155.24333859,0.00020269,2]
[321909321,1712613032883,-158.71869586,0.00020269,2]
[321909322,1712613032893,-323.20131776,0.00020269,2]
[321909323,1712613032903,-1633.76686708,0.00020269,2]
[321909324,1712613032912,-231.20918028,0.00020269,2]
[321909325,1712613032922,-155.85735465,0.00020269,2]
[321909326,1712613032931,-277.3117094,0.00020269,2]
[321909327,1712613032940,-214.57495642,0.00020269,2]
[321909328,1712613032949,-451.39859966,0.00020269,2]
[321909329,1712613032959,-376.6233637,0.00020269,2]
[321909330,1712613032969,-155.59271232,0.00020269,2]
[321909331,1712613032978,-208.09080812,0.00020269,2]
[321909332,1712613032987,-175.4359788,0.00020269,2]
[321909333,1712613032996,-199.38192412,0.00020269,2]
[321909334,1712613033005,-2914.97717492,0.0002027,2]
[321909335,1712613033016,-155.0,0.0002027,2]
[321909336,1712613033030,-206.59266165,0.0002027,2]
[321909337,1712613033039,-3793.65005309,0.0002027,2]
[321909338,1712613033048,-106964.04503933,0.00020271,2]
[321909339,1712613033084,-581.2431773,0.00020271,2]
[321909340,1712613033096,-661.68277074,0.00020271,2]
[321909341,1712613033112,-1410.64346403,0.00020271,2]
[321909342,1712613033473,-717.34,0.00020271,2]
[321909343,1712613033484,-4399.4013588,0.00020271,2]
[321909344,1712613033496,-5660.81429448,0.00020271,2]
[321909345,1712613033516,-679.84698,0.00020271,2]
[321909346,1712613033542,-28489.0373857,0.00020271,2]
[321909347,1712613033555,-3851.33000033,0.00020271,2]
[321909348,1712613033592,-2079.35349562,0.00020271,2]
[321909373,1712613038018,-4396.89423792,0.00018225,2]
[321909375,1712613038028,-284343.52103087,0.00020271,2]
[321909377,1712613038037,-2000.0,0.00020271,2]
[321909379,1712613038047,-200.0,0.00020271,2]
[321909381,1712613038056,-166.98798,0.00020271,2]
[321909383,1712613038065,-68268.1419077,0.00020281,2]
[321909385,1712613038074,-13269.9980255,0.00020281,2]
[321909387,1712613038083,-3500.3756939,0.00020295,2]
[321909388,1712613038093,-471.040906,0.00020309,2]
[321909389,1712613038103,-7561.88490789,0.00020316,2]
[321909390,1712613038112,-35434.95445029,0.00020359,2]
[321909391,1712613038121,-150.49607496,0.00020368,2]
[321909392,1712613038130,-3238.58312961,0.00020387,2]
[321909393,1712613038139,-471.040906,0.00020409,2]
[321909394,1712613038148,-301.0384719,0.00020462,2]
[321909395,1712613038158,-159.00931375,0.0002047,2]
[321909396,1712613038167,-651.61279529,0.0002047,2]
[321909397,1712613038177,-166.94364196,0.00020471,2]
[321909398,1712613038186,-156.97520715,0.00020471,2]
[321909399,1712613038195,-2000.0,0.00020474,2]
[321909400,1712613038205,-200.0,0.00020474,2]
[321909401,1712613038214,-1241.92575913,0.00020486,2]
[321909402,1712613038223,-1000.0,0.000205,2]
[321909403,1712613038233,-150.0,0.000205,2]
[321909404,1712613038242,-471.040906,0.00020509,2]
[321909405,1712613038251,-306.29243,0.0002054,2]
[321909406,1712613038260,-1500.0,0.00020553,2]
[321909407,1712613038270,-150.49607496,0.00020565,2]
[321909408,1712613038279,-471.040906,0.00020609,2]
[321909409,1712613038288,-448.75,0.00020635,2]
[321909410,1712613038298,-1500.0,0.00020636,2]
[321909411,1712613038307,-43180.57173999,0.00020645,2]
[321909412,1712613038316,-2000.0,0.00020678,2]
[321909413,1712613038325,-200.0,0.00020678,2]
[321909414,1712613038334,-1000.0,0.000207,2]
[321909416,1712613038343,-1026.0,0.000207,2]
[321909418,1712613038352,-1000.0,0.000207,2]
[321909420,1712613038362,-471.040906,0.00020709,2]
[321909422,1712613038371,-155.95974899,0.00020738,2]
[321909424,1712613038380,-173.72120902,0.00020738,2]
[321909426,1712613038388,-150.49607496,0.00020761,2]
[321909429,1712613038397,-11448.26212192,0.00020785,2]
[321909432,1712613038406,-789.36,0.00020792,2]
[321909434,1712613038415,-268.60537439,0.000208,2]
[321909436,1712613038424,-176.09974936,0.000208,2]
[321909438,1712613038433,-216.0022291,0.000208,2]
[321909440,1712613038442,-153.47156103,0.000208,3]
[321909442,1712613038451,-2692.60490605,0.000208,2]
[321909444,1712613038460,-23570.95565627,0.000208,2]
[321909446,1712613038469,-334.10978348,0.000208,2]
[321909448,1712613038478,-3492.15367029,0.000208,3]
[321909450,1712613038487,-1000.0,0.00020801,2]
[321909452,1712613038496,-471.040906,0.00020809,2]
[321909454,1712613038505,-167.0,0.00020838,2]
[321909456,1712613038514,-800.0,0.00020849,2]
[321909458,1712613038523,-2000.0,0.00020885,2]
[321909460,1712613038532,-200.0,0.00020885,2]
[321909462,1712613038542,-337.63597923,0.0002089,2]
[321909464,1712613038551,-337.63597923,0.0002089,2]
[321909466,1712613038563,-448.75,0.0002089,2]
[321909468,1712613038572,-448.75,0.0002089,2]
[321909470,1712613038581,-448.75,0.0002089,2]
[321909472,1712613038590,-448.75,0.0002089,2]
[321909474,1712613038601,-3672.932,0.00020896,2]
[321909476,1712613038611,-2680.4547715,0.00020899,2]
[321909478,1712613038620,-300.0,0.00020899,2]
[321909481,1712613038630,-300.0,0.00020899,2]
[321909482,1712613038639,-300.0,0.00020899,2]
[321909484,1712613038649,-300.0,0.00020899,2]
[321909486,1712613038658,-300.0,0.00020899,2]
[321909489,1712613038667,-353.2748771,0.00020899,2]
[321909491,1712613038678,-4065.30916297,0.000209,2]
[321909493,1712613038687,-1785599.42111818,0.000209,2]
[321909495,1712613038696,-991.47,0.000209,2]
[321909497,1712613038704,-1360.03,0.000209,2]
[321909499,1712613038714,-150.0,0.00020949,2]
[321909501,1712613038723,-150.49607496,0.00020958,2]
[321909503,1712613038732,-543.87,0.00020959,2]
[321909505,1712613038742,-301.0384719,0.00020963,2]
[321909507,1712613038751,-1500.0,0.00020964,2]
[321909509,1712613038761,-700.65,0.00020966,2]
[321909511,1712613038769,-205.75093505,0.00020994,2]
[321909512,1712613038778,-156.62006452,0.00020995,2]
[321909515,1712613038788,-3709.972,0.00020998,2]
[321909517,1712613038798,-1001.4464,0.00020999,2]
[321909519,1712613038809,-1000.0,0.00021,2]
[321909521,1712613038818,-714.74834698,0.00021,2]
[321909523,1712613038828,-1335126.67167991,0.00021,2]
[321909525,1712613038837,-490645.02981168,0.00021,2]
[321909527,1712613038846,-40551.96381163,0.00021,2]
[321909529,1712613038855,-550.0,0.00021,3]
[321909531,1712613038864,-150.0,0.00021,2]
[321909533,1712613038873,-7561.88490789,0.0002104,2]
[321909535,1712613038882,-2000.0,0.00021094,2]
[321909537,1712613038891,-200.0,0.00021094,2]
[321909539,1712613038901,-1500.0,0.00021101,2]
[321909541,1712613038911,-35434.95445029,0.00021116,2]
[321909558,1712613039178,-4005.0,0.00021141,2]
[321909559,1712613039190,-150.49607496,0.00021155,2]
[321909560,1712613039200,-306.29243,0.0002117,2]
[321909561,1712613039209,-150.0,0.00021255,2]
[321909562,1712613039218,-150.0,0.00021267,2]
[321909564,1712613039228,-11448.26212192,0.00021302,2]
[321909565,1712613039237,-1000.0,0.00021341,2]
[321909566,1712613039246,-150.49607496,0.00021352,2]
[321909567,1712613039255,-301.0384719,0.00021464,2]
[321909568,1712613039264,-1500.0,0.00021485,2]
[321909569,1712613039273,-1000.0,0.00021493,2]
[321909570,1712613039282,-200.0,0.00021493,2]
[321909571,1712613039291,-150.0,0.000215,2]
[321909572,1712613039301,-150.49607496,0.00021548,2]
[321909573,1712613039310,-1500.0,0.00021564,2]
[321909574,1712613039319,-1500.0,0.00021707,2]
[321909575,1712613039328,-150.0,0.00021743,2]
[321909576,1712613039337,-150.49607496,0.00021745,2]
[321909577,1712613039346,-150.0,0.00021755,2]
[321909578,1712613039356,-7561.88490789,0.00021763,2]
[321909579,1712613039365,-306.29243,0.0002179,2]
[321909580,1712613039374,-150.0,0.00021792,2]
[321909581,1712613039383,-150.0,0.00021796,2]
[321909582,1712613039392,-150.0,0.00021796,2]
[321909583,1712613039402,-150.0,0.00021796,2]
[321909584,1712613039411,-150.0,0.00021796,2]
[321909585,1712613039420,-150.0,0.00021796,2]
[321909586,1712613039429,-150.0,0.00021796,2]
[321909587,1712613039438,-3492.15367028,0.00021808,5]
[321909588,1712613039447,-11448.26212192,0.0002182,2]
[321909589,1712613039455,-35434.95445029,0.00021872,2]
[321909590,1712613039465,-1500.0,0.00021909,2]
[321909591,1712613039474,-150.0,0.00021914,2]
[321909592,1712613039483,-151.0,0.00021918,2]
[321909593,1712613039492,-151.0,0.00021918,2]
[321909594,1712613039501,-151.0,0.00021918,2]
[321909595,1712613039510,-151.0,0.00021918,2]
[321909596,1712613039519,-151.0,0.00021918,2]
[321909597,1712613039528,-151.0,0.00021918,2]
[321909598,1712613039537,-151.0,0.00021918,2]
[321909599,1712613039547,-151.0,0.00021918,2]
[321909600,1712613039558,-151.0,0.00021918,2]
[321909601,1712613039568,-151.0,0.00021918,2]
[321909602,1712613039577,-151.0,0.00021918,2]
[321909603,1712613039586,-199.866325,0.00021918,2]
[321909604,1712613039595,-199.866325,0.00021918,2]
[321909605,1712613039604,-199.866325,0.00021918,2]
[321909606,1712613039614,-199.866325,0.00021918,2]
[321909607,1712613039624,-199.866325,0.00021918,2]
[321909608,1712613039634,-199.866325,0.00021918,2]
[321909609,1712613039643,-199.866325,0.00021918,2]
[321909610,1712613039652,-199.866325,0.00021918,2]
[321909611,1712613039661,-199.866325,0.00021918,2]
[321909612,1712613039670,-199.866325,0.00021918,2]
[321909613,1712613039679,-151.0,0.00021918,2]
[321909614,1712613039689,-151.0,0.00021918,2]
[321909615,1712613039699,-151.0,0.00021918,2]
[321909616,1712613039707,-151.0,0.00021918,2]
[321909617,1712613039717,-151.0,0.00021918,2]
[321909618,1712613039726,-151.0,0.00021918,2]
[321909619,1712613039735,-151.0,0.00021918,2]
[321909620,1712613039744,-151.0,0.00021918,2]
[321909621,1712613039753,-151.0,0.00021918,2]
[321909622,1712613039762,-151.0,0.00021918,2]
[321909623,1712613039771,-151.0,0.00021918,2]
[321909624,1712613039780,-178.422801,0.00021918,2]
[321909625,1712613039789,-178.422801,0.00021918,2]
[321909626,1712613039799,-178.422801,0.00021918,2]
[321909627,1712613039808,-178.422801,0.00021918,2]
[321909628,1712613039818,-178.422801,0.00021918,2]
[321909629,1712613039827,-178.422801,0.00021918,2]
[321909631,1712613039835,-178.422801,0.00021918,2]
[321909634,1712613039844,-178.422801,0.00021918,2]
[321909637,1712613039853,-178.422801,0.00021918,2]
[321909640,1712613039862,-178.422801,0.00021918,2]
[321909643,1712613039871,-151.0,0.00021918,2]
[321909645,1712613039880,-151.0,0.00021918,2]
[321909647,1712613039890,-151.0,0.00021918,2]
[321909648,1712613039898,-151.0,0.00021918,2]
[321909649,1712613039907,-151.0,0.00021918,2]
[321909650,1712613039916,-151.0,0.00021918,2]
[321909651,1712613039925,-271.691421,0.00021918,2]
[321909652,1712613039934,-151.0,0.00021918,2]
[321909653,1712613039942,-151.0,0.00021918,2]
[321909654,1712613039952,-151.0,0.00021918,2]
[321909655,1712613039961,-151.0,0.00021918,2]
[321909656,1712613039970,-151.0,0.00021918,2]
[321909657,1712613039979,-151.0,0.00021918,2]
[321909658,1712613039988,-151.0,0.00021918,2]
[321909659,1712613039997,-230.066298,0.00021918,2]
[321909660,1712613040007,-151.0,0.00021918,2]
[321909661,1712613040016,-151.0,0.00021918,2]
[321909662,1712613040025,-151.0,0.00021918,2]
[321909663,1712613040034,-151.0,0.00021918,2]
[321909664,1712613040043,-151.0,0.00021918,2]
[321909665,1712613040053,-151.0,0.00021918,2]
[321909666,1712613040062,-151.0,0.00021918,2]
[321909667,1712613040070,-151.0,0.00021918,2]
[321909668,1712613040080,-151.0,0.00021918,2]
[321909669,1712613040088,-151.0,0.00021918,2]
[321909670,1712613040098,-151.0,0.00021918,2]
[321909671,1712613040107,-151.0,0.00021918,2]
[321909672,1712613040117,-153.07213,0.00021918,2]
[321909673,1712613040126,-153.07213,0.00021918,2]
[321909674,1712613040135,-153.07213,0.00021918,2]
[321909675,1712613040144,-153.07213,0.00021918,2]
[321909676,1712613040153,-153.07213,0.00021918,2]
[321909677,1712613040162,-153.07213,0.00021918,2]
[321909678,1712613040171,-153.07213,0.00021918,2]
[321909679,1712613040181,-153.07213,0.00021918,2]
[321909680,1712613040190,-153.07213,0.00021918,2]
[321909681,1712613040199,-153.07213,0.00021918,2]
[321909682,1712613040208,-249.807625,0.00021918,2]
[321909683,1712613040217,-249.807625,0.00021918,2]
[321909684,1712613040226,-249.807625,0.00021918,2]
[321909685,1712613040235,-249.807625,0.00021918,2]
[321909686,1712613040245,-249.807625,0.00021918,2]
[321909687,1712613040255,-249.807625,0.00021918,2]
[321909688,1712613040264,-249.807625,0.00021918,2]
[321909689,1712613040274,-249.807625,0.00021918,2]
[321909690,1712613040284,-249.807625,0.00021918,2]
[321909691,1712613040294,-249.807625,0.00021918,2]
[321909692,1712613040303,-151.0,0.00021918,2]
[321909693,1712613040312,-151.0,0.00021918,2]
[321909694,1712613040322,-151.0,0.00021918,2]
[321909695,1712613040331,-151.0,0.00021918,2]
[321909696,1712613040340,-151.0,0.00021918,2]
[321909697,1712613040348,-236.018319,0.00021918,2]
[321909698,1712613040357,-226.697656,0.00021918,2]
[321909699,1712613040366,-226.697656,0.00021918,2]
[321909700,1712613040375,-226.697656,0.00021918,2]
[321909701,1712613040384,-226.697656,0.00021918,2]
[321909702,1712613040393,-226.697656,0.00021918,2]
[321909703,1712613040402,-226.697656,0.00021918,2]
[321909704,1712613040411,-226.697656,0.00021918,2]
[321909705,1712613040420,-226.697656,0.00021918,2]
[321909706,1712613040429,-226.697656,0.00021918,2]
[321909707,1712613040438,-226.697656,0.00021918,2]
[321909708,1712613040447,-151.0,0.00021918,2]
[321909709,1712613040456,-151.0,0.00021918,2]
[321909710,1712613040466,-151.0,0.00021918,2]
[321909711,1712613040474,-151.0,0.00021918,2]
[321909712,1712613040484,-277.336843,0.00021918,2]
[321909713,1712613040492,-225.019287,0.00021918,2]
[321909714,1712613040502,-151.0,0.00021918,2]
[321909715,1712613040511,-151.0,0.00021918,2]
[321909716,1712613040520,-151.0,0.00021918,2]
[321909717,1712613040529,-250.0,0.00021918,2]
[321909718,1712613040539,-151.0,0.00021918,2]
[321909719,1712613040549,-151.0,0.00021918,2]
[321909720,1712613040560,-151.0,0.00021918,2]
[321909721,1712613040570,-151.0,0.00021918,2]
[321909722,1712613040579,-151.0,0.00021918,2]
[321909723,1712613040588,-151.0,0.00021918,2]
[321909724,1712613040598,-251.363033,0.00021918,2]
[321909725,1712613040606,-151.0,0.00021918,2]
[321909726,1712613040616,-151.0,0.00021918,2]
[321909727,1712613040625,-151.0,0.00021918,2]
[321909728,1712613040635,-151.0,0.00021918,2]
[321909729,1712613040645,-151.0,0.00021918,2]
[321909730,1712613040654,-151.0,0.00021918,2]
[321909731,1712613040663,-151.0,0.00021918,2]
[321909732,1712613040673,-151.0,0.00021918,2]
[321909733,1712613040682,-151.0,0.00021918,2]
[321909734,1712613040691,-151.0,0.00021918,2]
[321909735,1712613040700,-151.0,0.00021918,2]
[321909736,1712613040709,-151.0,0.00021918,2]
[321909737,1712613040720,-151.0,0.00021918,2]
[321909738,1712613040729,-151.0,0.00021918,2]
[321909739,1712613040739,-151.0,0.00021918,2]
[321909740,1712613040748,-151.0,0.00021918,2]
[321909741,1712613040757,-151.0,0.00021918,2]
[321909742,1712613040767,-151.0,0.00021918,2]
[321909743,1712613040776,-151.0,0.00021918,2]
[321909744,1712613040786,-151.0,0.00021918,2]
[321909745,1712613040796,-1500.0,0.00021918,2]
[321909746,1712613040805,-250.0,0.00021918,2]
[321909747,1712613040815,-1686.088117,0.00021918,2]
[321909748,1712613040824,-1686.088117,0.00021918,2]
[321909749,1712613040833,-1686.088117,0.00021918,2]
[321909750,1712613040843,-1686.088117,0.00021918,2]
[321909751,1712613040852,-1686.088117,0.00021918,2]
[321909752,1712613040860,-1686.088117,0.00021918,2]
[321909753,1712613040869,-151.0,0.00021918,2]
[321909754,1712613040878,-151.0,0.00021918,2]
[321909755,1712613040887,-151.0,0.00021918,2]
[321909756,1712613040896,-1686.088117,0.00021918,2]
[321909757,1712613040905,-151.0,0.00021918,2]
[321909758,1712613040915,-1686.088117,0.00021918,2]
[321909759,1712613040924,-151.0,0.00021918,2]
[321909760,1712613040933,-1686.088117,0.00021918,2]
[321909761,1712613040942,-209.130756,0.00021918,2]
[321909762,1712613040950,-1686.088117,0.00021918,2]
[321909763,1712613040959,-1686.088117,0.00021918,2]
[321909764,1712613040970,-1686.088117,0.00021918,2]
[321909765,1712613040980,-151.0,0.00021918,2]
[321909766,1712613040990,-151.0,0.00021918,7]
[321909767,1712613040999,-199.866325,0.00021918,7]
[321909768,1712613041008,-199.866325,0.00021918,7]
[321909769,1712613041017,-151.0,0.00021918,7]
[321909770,1712613041027,-151.0,0.00021918,7]
[321909771,1712613041036,-178.422801,0.00021918,7]
[321909772,1712613041045,-178.422801,0.00021918,7]
[321909773,1712613041054,-151.0,0.00021918,7]
[321909774,1712613041063,-151.0,0.00021918,2]
[321909775,1712613041072,-151.0,0.00021918,7]
[321909776,1712613041081,-153.07213,0.00021918,7]
[321909777,1712613041090,-153.07213,0.00021918,7]
[321909778,1712613041099,-249.807625,0.00021918,7]
[321909779,1712613041108,-249.807625,0.00021918,7]
[321909780,1712613041117,-151.0,0.00021918,7]
[321909781,1712613041126,-226.697656,0.00021918,7]
[321909782,1712613041135,-226.697656,0.00021918,7]
[321909783,1712613041144,-151.0,0.00021918,7]
[321909784,1712613041153,-151.0,0.00021918,7]
[321909785,1712613041162,-151.0,0.00021918,7]
[321909786,1712613041171,-150.49607496,0.00021942,2]
[321909787,1712613041180,-300.0,0.0002197,2]
[321909788,1712613041189,-150.0,0.00021995,2]
[321909789,1712613041199,-150.0,0.00021995,2]
[321909790,1712613041208,-150.0,0.00021995,2]
[321909791,1712613041218,-150.0,0.00021995,2]
[321909792,1712613041227,-150.0,0.00021995,2]
[321909793,1712613041237,-213.77204202,0.00022,2]
[321909794,1712613041246,-267.56608162,0.00022,2]
[321909795,1712613041255,-621.66917706,0.00022,2]
[321909796,1712613041265,-150.0,0.00022,2]
[321909797,1712613041274,-150.0,0.00022015,2]
[321909798,1712613041283,-1500.0,0.00022036,2]
[321909799,1712613041292,-300.0,0.00022067,2]
[321909800,1712613041302,-232.40801987,0.00022084,2]
[321909801,1712613041311,-150.0,0.00022105,2]
[321909802,1712613041321,-150.0,0.00022109,2]
[321909803,1712613041330,-150.49607496,0.00022139,2]
[321909804,1712613041339,-162.84,0.00022143,2]
[321909805,1712613041349,-150.0,0.00022143,2]
[321909806,1712613041358,-150.0,0.00022172,2]
[321909807,1712613041368,-200.0,0.00022185,2]
[321909808,1712613041377,-1000.0,0.00022185,2]
[321909809,1712613041388,-500.0,0.00022185,2]
[321909810,1712613041398,-200.0,0.00022185,2]
[321909811,1712613041407,-256.38,0.00022192,2]
[321909812,1712613041418,-150.0,0.00022198,4]
[321909813,1712613041428,-1360.03,0.000222,2]
[321909814,1712613041437,-150.0,0.00022234,2]
[321909815,1712613041447,-1500.0,0.00022235,2]
[321909816,1712613041458,-1500.0,0.0002226,2]
[321909817,1712613041468,-1500.0,0.00022262,2]
[321909818,1712613041477,-1500.0,0.00022263,2]
[321909819,1712613041486,-150.0,0.00022265,2]
[321909820,1712613041495,-150.0,0.00022268,2]
[321909821,1712613041504,-150.0,0.00022293,2]
[321909822,1712613041513,-1000.0,0.000223,2]
[321909823,1712613041522,-1000.0,0.000223,2]
[321909824,1712613041532,-1000.0,0.000223,2]
[321909825,1712613041542,-1000.0,0.000223,2]
[321909826,1712613041553,-150.0,0.00022301,2]
[321909827,1712613041564,-150.0,0.00022313,2]
[321909828,1712613041574,-1500.0,0.00022323,2]
[321909829,1712613041583,-150.49607496,0.00022335,2]
[321909830,1712613041592,-1500.0,0.00022336,2]
[321909831,1712613041601,-11448.26212192,0.00022337,2]
[321909832,1712613041611,-308.01,0.00022349,2]
[321909833,1712613041620,-150.0,0.00022365,2]
[321909834,1712613041629,-150.0,0.00022397,2]
[321909835,1712613041638,-991.47,0.000224,2]
[321909836,1712613041647,-150.0,0.00022402,4]
[321909837,1712613041656,-150.0,0.0002241,2]
[321909838,1712613041666,-150.0,0.00022414,2]
[321909839,1712613041675,-306.29243,0.0002242,2]
[321909840,1712613041684,-167.0,0.00022427,2]
[321909841,1712613041693,-150.0,0.0002243,2]
[321909842,1712613041702,-150.0,0.00022434,2]
[321909843,1712613041711,-150.0,0.00022443,2]
[321909844,1712613041720,-150.0,0.00022454,2]
[321909845,1712613041730,-7561.88490789,0.00022486,2]
[321909846,1712613041739,-1000.0,0.000225,2]
[321909847,1712613041748,-150.0,0.000225,2]
[321909848,1712613041758,-1000.0,0.000225,2]
[321909849,1712613041767,-1000.0,0.000225,2]
[321909850,1712613041776,-1000.0,0.000225,2]
[321909851,1712613041785,-150.0,0.0002251,2]
[321909852,1712613041794,-150.0,0.00022516,2]
[321909853,1712613041803,-150.49607496,0.00022532,2]
[321909854,1712613041811,-19675.82,0.00022562,2]
[321909855,1712613041820,-1089.97,0.00022562,2]
[321909856,1712613041829,-188.73,0.00022562,2]
[321909857,1712613041838,-150.0,0.00022565,2]
[321909858,1712613041848,-300.0,0.00022567,2]
[321909859,1712613041859,-150.0,0.00022587,2]
[321909860,1712613041868,-150.0,0.00022605,4]
[321909861,1712613041878,-150.0,0.00022605,4]
[321909862,1712613041888,-150.0,0.00022605,4]
[321909863,1712613041897,-245.3207084,0.0002261,2]
[321909864,1712613041907,-150.0,0.00022618,2]
[321909865,1712613041916,-150.0,0.00022625,2]
[321909866,1712613041925,-1686.088117,0.00022628,7]
[321909867,1712613041934,-1686.088117,0.00022628,7]
[321909868,1712613041943,-35434.95445029,0.00022628,2]
[321909869,1712613041952,-150.0,0.00022637,2]
[321909870,1712613041961,-150.0,0.00022647,2]
[321909871,1712613041971,-300.0,0.00022648,2]
[321909872,1712613041980,-1500.0,0.0002265,2]
[321909873,1712613041989,-150.0,0.00022665,2]
[321909874,1712613041998,-150.0,0.00022682,2]
[321909875,1712613042009,-234.68374595,0.00022699,2]
[321909876,1712613042018,-1500.0,0.00022724,2]
[321909877,1712613042027,-150.49607496,0.00022729,2]
[321909878,1712613042036,-150.0,0.00022743,2]
[321909879,1712613042046,-1500.0,0.00022752,2]
[321909880,1712613042054,-300.0,0.00022756,2]
[321909881,1712613042063,-150.0,0.00022767,2]
[321909882,1712613042073,-1100.0,0.0002278,2]
[321909883,1712613042082,-500.0,0.0002278,2]
[321909884,1712613042091,-700.0,0.0002278,2]
[321909885,1712613042100,-500.0,0.0002278,2]
[321909886,1712613042109,-150.0,0.00022785,2]
[321909887,1712613042118,-150.0,0.00022789,2]
[321909888,1712613042127,-150.0,0.00022803,2]
[321909889,1712613042136,-150.0,0.00022809,4]
[321909890,1712613042145,-150.0,0.00022812,2]
[321909891,1712613042154,-150.0,0.00022839,2]
[321909892,1712613042163,-319.31910494,0.00022841,2]
[321909893,1712613042174,-150.0,0.00022853,2]
[321909894,1712613042183,-11448.26212192,0.00022854,2]
[321909895,1712613042192,-300.0,0.00022859,2]
[321909896,1712613042201,-1000.0,0.00022877,2]
[321909897,1712613042209,-1500.0,0.00022888,2]
[321909898,1712613042218,-150.0,0.00022897,2]
[321909899,1712613042227,-151.0,0.000229,7]
[321909900,1712613042236,-151.0,0.000229,7]
[321909901,1712613042245,-178.422801,0.000229,7]
[321909902,1712613042254,-178.422801,0.000229,7]
[321909903,1712613042263,-287.790304,0.000229,7]
[321909904,1712613042272,-1000.0,0.000229,2]
[321909905,1712613042282,-151.0,0.00022901,7]
[321909906,1712613042291,-199.866325,0.00022901,7]
[321909907,1712613042300,-199.866325,0.00022901,7]
[321909908,1712613042309,-151.0,0.00022901,2]
[321909909,1712613042319,-150.0,0.00022917,2]
[321909910,1712613042329,-150.0,0.00022922,2]
[321909911,1712613042338,-150.49607496,0.00022926,2]
[321909912,1712613042347,-161.15413954,0.00022928,2]
[321909913,1712613042356,-1500.0,0.00022941,2]
[321909914,1712613042366,-150.0,0.00022945,2]
[321909915,1712613042375,-150.0,0.0002298,2]
[321909916,1712613042385,-150.0,0.00022993,2]
[321909917,1712613042394,-150.0,0.00022997,2]
[321909918,1712613042403,-150.0,0.00022998,2]
[321909919,1712613042413,-544.53851712,0.00023,2]
[321909920,1712613042422,-306.97533583,0.00023,2]
[321909921,1712613042432,-155.0,0.00023,2]
[321909922,1712613042441,-155.0,0.00023,2]
[321909923,1712613042451,-600.0,0.00023,3]
[321909924,1712613042460,-150.0,0.00023,2]